bitfinex/quotes_ETHUSD_20250925
["timestamp","ask_amount","ask_price","bid_price","bid_amount"]
[1758821488630,8.602169,3904.7,3903.8,0.002]
[1758821488838,7.683,3904.6,3903.8,0.002]
[1758821489139,0.792,3904.4,3903.8,0.002]
[1758821489338,3.051632,3904.3,3903.8,0.002]
[1758821489728,0.6998,3904.2,3903.8,0.002]
[1758821489922,9.20161,3904.1,3903.8,0.002]
[1758821490118,3.27661,3904.0,3903.8,0.002]
[1758821490329,0.792,3903.9,3903.8,0.002]
[1758821490854,0.4597,3903.9,3903.8,0.002]
[1758821491052,0.6998,3903.9,3903.8,0.002]
[1758821491255,1.4918,3903.9,3903.8,0.002]
[1758821491456,3.75336,3903.9,3903.8,0.002]
[1758821491959,0.001,3904.0,3903.9,2.56154102]
[1758821492123,7.677,3904.0,3903.9,2.56154102]
[1758821492318,0.001,3904.0,3903.9,2.56154102]
[1758821492519,0.929,3904.0,3903.9,3.30175912]
[1758821492769,0.929,3904.0,3903.8,0.002]
[1758821492918,1.3887,3904.0,3903.8,0.002]
[1758821493126,0.2401,3903.9,3903.8,0.002]
[1758821493356,5.864348,3903.9,3903.8,0.002]
[1758821493589,6.634648,3903.9,3903.8,0.002]
[1758821493762,7.980622,3903.9,3903.8,0.002]
[1758821493963,6.658954,3903.9,3903.8,0.002]
[1758821494275,1.2517,3903.9,3903.8,0.002]
[1758821494473,11.512,3903.9,3903.8,0.002]
[1758821494784,10.923797,3903.9,3903.8,0.002]
[1758821494988,12.415597,3903.9,3903.8,0.002]
[1758821495164,14.97713802,3903.9,3903.8,0.002]
[1758821495779,0.792,3903.5,3903.4,0.002]
[1758821496085,16.774098,3903.5,3903.4,0.002]
[1758821496287,6.325,3903.5,3903.4,0.002]
[1758821496460,11.12339,3903.5,3903.4,0.002]
[1758821496656,17.4771935,3903.5,3903.4,0.002]
[1758821496887,44.7206035,3903.5,3903.4,0.002]
[1758821497809,28.06690464,3903.5,3903.4,0.002]
[1758821497973,22.80215864,3903.5,3903.4,0.002]
[1758821498608,14.13115264,3903.5,3903.4,0.002]
[1758821498784,18.86609864,3903.5,3903.4,0.002]
[1758821499087,16.22285614,3903.5,3903.4,0.002]
[1758821499292,11.56934914,3903.5,3903.4,0.002]
[1758821499587,7.663,3903.5,3903.4,0.002]
[1758821499990,16.93122818,3903.5,3903.4,0.002]
[1758821500185,18.39050818,3903.5,3903.4,0.002]
[1758821500558,18.39050818,3903.5,3903.0,0.002]
[1758821500796,30.0,3903.4,3903.0,0.002]
[1758821501097,30.0,3903.0,3902.7,2.56231518]
[1758821501388,0.7081,3902.9,3902.7,2.08731518]
[1758821501695,13.025145,3902.8,3902.7,2.08731518]
[1758821501889,4.411411,3902.8,3902.4,2.56252463]
[1758821502096,4.411411,3902.8,3901.6,0.2372]
[1758821502097,0.2455,3902.7,3901.6,0.2372]
[1758821502295,0.2455,3902.7,3901.1,2.56334139]
[1758821502296,0.7081,3902.6,3901.1,2.56334139]
[1758821502498,9.834085,3902.5,3901.0,0.2372]
[1758821503003,0.2455,3902.4,3901.0,0.2372]
[1758821503299,0.4626,3902.6,3901.1,0.6675]
[1758821503300,0.792,3902.2,3901.1,0.6675]
[1758821503511,5.519,3902.1,3901.7,2.56298125]
[1758821503664,5.519,3902.1,3902.0,2.56278831]
[1758821503968,5.519,3902.1,3902.0,2.79998831]
[1758821504293,2.56154403,3903.9,3902.1,2.56272263]
[1758821504543,2.135,3903.2,3902.2,3.0]
[1758821504667,7.652,3903.1,3902.1,0.2372]
[1758821504862,0.792,3903.0,3902.2,2.56261381]
[1758821505088,0.792,3902.8,3902.2,2.56259732]
[1758821505369,8.292527,3902.7,3902.2,2.56264756]
[1758821505680,5.516,3902.7,3902.0,0.2372]
[1758821505873,5.515,3902.6,3901.7,0.2372]
[1758821506091,7.65,3902.5,3901.8,2.56291967]
[1758821506266,7.65,3902.4,3901.7,0.2372]
[1758821506466,2.135,3902.3,3901.8,2.56291967]
[1758821506680,2.135,3902.3,3901.9,2.79999169]
[1758821506887,2.135,3902.3,3902.2,2.69065696]
[1758821507602,2.927,3902.3,3901.6,2.5630437]
[1758821507921,0.792,3901.6,3901.2,0.128]
[1758821508212,0.792,3901.4,3900.7,0.128]
[1758821508365,0.792,3901.2,3900.4,0.4303]
[1758821508566,2.135,3901.1,3900.4,2.99410609]
[1758821508802,0.792,3901.0,3899.9,0.4303]
[1758821509099,0.792,3900.8,3899.9,0.6675]
[1758821509415,5.509,3900.9,3900.5,2.56374305]
[1758821509614,6.83421,3900.8,3900.0,0.2372]
[1758821509763,2.513844,3900.7,3899.7,0.2372]
[1758821509967,0.792,3900.8,3899.3,0.2372]
[1758821510193,6.90933421,3900.8,3899.9,2.5641509]
[1758821510397,5.509,3900.9,3900.3,2.56385729]
[1758821510575,2.688,3900.8,3900.0,0.2372]
[1758821510777,2.688,3900.8,3900.1,2.56397789]
[1758821510978,2.688,3900.8,3899.9,0.4303]
[1758821511180,1.2546,3901.6,3900.0,2.80128111]
[1758821511391,3.792,3901.4,3900.1,0.4303]
[1758821511591,3.218573,3901.3,3900.1,0.6675]
[1758821511802,0.792,3901.2,3899.8,0.2372]
[1758821512001,8.453625,3901.1,3899.8,0.2372]
[1758821512222,2.000469,3901.0,3899.8,3.2372]
[1758821512417,2.000469,3901.0,3899.8,0.2372]
[1758821512601,2.000469,3901.0,3900.4,2.56381404]
[1758821512797,2.000469,3901.0,3900.3,2.56389488]
[1758821512997,2.000469,3901.0,3900.4,2.56382702]
[1758821513222,5.505,3901.1,3899.4,3.0]
[1758821513425,5.505,3901.1,3900.7,2.56361396]
[1758821513721,5.505,3901.1,3900.9,2.56345194]
[1758821514022,2.136,3901.2,3901.0,0.2372]
[1758821514220,5.501,3901.1,3901.0,2.99373851]
[1758821514392,5.501,3901.1,3901.0,2.99374527]
[1758821514592,2.136,3901.8,3901.0,0.98602095]
[1758821514793,2.136,3901.8,3901.4,2.56313066]
[1758821514794,5.501,3901.7,3901.4,2.56313066]
[1758821514993,5.501,3901.7,3901.2,2.56331385]
[1758821515212,5.501,3901.7,3900.8,0.2372]
[1758821515415,5.501,3901.7,3901.2,2.56326396]
[1758821515840,5.7465,3901.7,3900.8,2.56355577]
[1758821516022,5.7465,3901.7,3899.1,0.792]
[1758821516023,5.053056,3901.6,3897.4,1.0]
[1758821516224,3.372527,3901.5,3900.2,2.56397107]
[1758821516397,0.792,3901.3,3900.2,0.4303]
[1758821516600,8.961934,3901.2,3900.1,0.2372]
[1758821516798,5.498,3901.2,3900.1,0.2372]
[1758821516994,5.498,3901.2,3900.2,2.56397107]
[1758821517199,5.498,3901.2,3899.8,2.99451483]
[1758821517200,14.624715,3901.1,3900.5,2.56371154]
[1758821517400,2.136,3901.0,3899.8,0.4303]
[1758821517594,2.136,3901.0,3899.9,0.2372]
[1758821517827,2.136,3901.0,3900.9,2.56351098]
[1758821518312,2.136,3901.0,3900.9,3.35901098]
[1758821518494,2.136,3901.0,3900.9,2.92871098]
[1758821518697,2.136,3901.0,3900.9,2.69151098]
[1758821518899,2.136,3901.0,3900.9,3.88452146]
[1758821519301,2.136,3901.0,3900.9,3.35901098]
[1758821519523,5.498,3901.2,3901.1,2.56337955]
[1758821519726,5.498,3901.2,3901.1,2.92857955]
[1758821520026,2.136,3901.8,3901.7,2.56298536]
[1758821520427,10.486473,3901.8,3900.6,2.80090314]
[1758821520636,2.8441,3901.8,3900.3,0.4303]
[1758821520840,2.474439,3901.7,3900.4,2.8010396]
[1758821521049,5.489,3901.6,3901.1,2.56335363]
[1758821521359,2.5637,3901.5,3901.1,2.56335363]
[1758821521654,5.489,3901.6,3900.9,2.56351098]
[1758821521819,5.489,3901.6,3901.0,0.25891467]
[1758821521996,5.489,3901.6,3900.9,0.6675]
[1758821521997,5.489,3901.6,3901.2,2.56325515]
[1758821522210,5.489,3901.6,3900.5,2.56377387]
[1758821522411,5.489,3901.6,3901.5,2.56311674]
[1758821522636,5.489,3901.6,3901.0,0.6675]
[1758821522854,5.489,3901.6,3900.7,0.2372]
[1758821523055,5.489,3901.6,3901.4,2.56313737]
[1758821523538,5.489,3901.6,3900.7,2.56364242]
[1758821523539,2.136,3901.8,3900.7,0.2372]
[1758821523739,5.34,3901.8,3901.7,2.56298536]
[1758821524154,0.2358,3903.2,3901.7,0.673]
[1758821524356,14.662312,3903.1,3901.5,0.2407]
[1758821524558,12.519391,3903.0,3902.1,2.56266979]
[1758821524767,5.337906,3902.1,3900.8,2.5635767]
[1758821524961,5.337906,3902.1,3900.9,2.56351098]
[1758821524962,16.339113,3902.0,3900.9,2.56351098]
[1758821525253,30.0,3901.9,3900.7,0.32313066]
[1758821525458,8.3174,3902.0,3900.7,0.32313066]
[1758821525459,7.619,3902.0,3900.7,0.32313066]
[1758821525662,18.312661,3901.9,3900.5,0.2407]
[1758821525816,5.703723,3901.9,3901.2,2.56325261]
[1758821526021,0.2358,3901.9,3900.7,0.02563642]
[1758821526269,0.2358,3902.5,3900.9,2.56351098]
[1758821526566,10.62555,3902.4,3901.1,2.56337955]
[1758821526719,7.615,3902.4,3901.1,2.56337955]
[1758821527063,7.615,3902.4,3901.9,2.56282656]
[1758821527433,0.2358,3902.3,3901.9,2.56282656]
[1758821527638,7.8884,3902.2,3901.0,0.673]
[1758821527857,11.270901,3902.1,3900.9,2.56351098]
[1758821528164,7.19,3902.0,3901.4,2.56313789]
[1758821528353,22.39338,3901.9,3900.8,0.002]
[1758821528554,5.475,3902.0,3900.8,0.002]
[1758821528753,5.475,3902.0,3901.9,2.56285399]
[1758821529062,0.4626,3903.0,3902.0,2.56278831]
[1758821529265,2.136,3902.9,3902.8,2.56226299]
[1758821530275,2.136,3902.9,3902.8,2.69026299]
[1758821530911,0.768,3903.0,3902.9,2.56219734]
[1758821531377,2.8653,3902.9,3902.8,2.69024728]
[1758821531675,0.768,3903.0,3902.9,2.56219734]
[1758821532339,0.768,3903.0,3902.9,2.58781931]
[1758821532539,0.001,3903.2,3903.1,2.56206605]
[1758821532776,0.001,3903.2,3903.1,2.69006605]
[1758821533070,0.001,3903.2,3903.1,2.93076605]
[1758821533272,0.001,3903.2,3903.1,3.27406605]
[1758821533850,0.001,3903.2,3903.1,2.80276605]
[1758821534041,0.001,3903.2,3903.1,9.55740778]
[1758821534241,0.001,3903.2,3903.1,7.06678712]
[1758821534768,0.001,3903.2,3903.1,14.66678712]
[1758821534974,0.001,3903.2,3903.1,7.06678712]
[1758821535177,0.001,3903.2,3903.1,14.66578712]
[1758821535337,0.001,3903.2,3903.1,7.06678712]
[1758821535673,0.001,3903.2,3903.1,14.66478712]
[1758821536637,1e-08,3904.0,3903.9,2.56154102]
[1758821537071,1e-08,3904.0,3903.9,3.27354102]
[1758821537278,1e-08,3904.0,3903.9,4.14535763]
[1758821537460,1e-08,3904.0,3903.9,2.80224102]
[1758821537774,1e-08,3904.0,3903.9,2.56154102]
[1758821539546,0.68770001,3904.0,3903.2,2.5620004]
[1758821539740,0.68770001,3904.0,3902.8,3.2407]
[1758821539941,0.44610001,3904.0,3903.7,2.56167144]
[1758821540137,1e-08,3904.0,3902.5,0.4713]
[1758821540372,1e-08,3904.0,3901.2,0.10909259]
[1758821540373,1e-08,3904.0,3903.9,2.56154102]
[1758821540739,0.24160001,3904.0,3903.9,2.56154102]
[1758821540961,0.68770001,3904.0,3902.8,2.56226222]
[1758821541158,0.68770001,3904.0,3903.9,2.56154102]
[1758821541374,0.24160001,3904.0,3903.9,2.56154102]
[1758821541672,1e-08,3904.0,3903.9,2.56154102]
[1758821542989,1e-08,3904.0,3903.9,2.80224102]
[1758821543204,1e-08,3904.0,3903.9,2.56154102]
[1758821543492,0.68770001,3904.0,3903.9,0.128]
[1758821544075,3.89024701,3904.0,3903.9,0.128]
[1758821544279,0.68770001,3904.0,3903.9,0.128]
[1758821545085,0.68770001,3904.0,3903.3,2.56189095]
[1758821545255,0.2416,3903.9,3903.7,0.128]
[1758821545590,2.135,3903.8,3903.7,0.128]
[1758821545751,2.8227,3903.8,3903.7,0.128]
[1758821545951,2.8227,3903.8,3903.5,0.128]
[1758821546152,2.8227,3903.8,3902.2,5.9123]
[1758821546153,12.639307,3903.5,3901.9,0.2407]
[1758821546387,3.35395365,3903.3,3901.5,0.2407]
[1758821546684,20.493037,3903.2,3902.7,0.128]
[1758821546985,20.493037,3903.2,3902.1,2.5626748]
[1758821546986,0.792,3903.0,3902.1,2.5626748]
[1758821547158,23.07122,3902.9,3902.3,0.128]
[1758821547359,7.833532,3902.8,3902.3,0.128]
[1758821547554,7.138475,3902.8,3902.3,2.6905424]
[1758821547897,2.927,3902.9,3902.8,0.002]
[1758821548066,8.090204,3902.9,3902.8,0.002]
[1758821548262,6.098204,3902.9,3902.8,0.002]
[1758821548573,7.571,3903.0,3902.8,0.002]
[1758821548763,7.571,3903.0,3902.9,0.128]
[1758821548962,7.571,3903.0,3902.8,0.002]
[1758821549178,7.571,3903.0,3902.9,2.69019734]
[1758821549784,7.571,3903.0,3902.9,0.128]
[1758821550174,7.571,3903.0,3902.9,2.69019734]
[1758821550378,0.3696,3903.9,3902.9,2.69019734]
[1758821550675,7.57,3903.8,3903.5,2.56174858]
[1758821550992,0.001,3904.4,3903.9,2.56154102]
[1758821551371,0.2416,3904.3,3903.9,2.56154102]
[1758821551996,0.4471,3904.4,3903.9,2.56154102]
[1758821551997,0.001,3904.4,3903.9,3.07386235]
[1758821552181,0.2426,3904.4,3903.9,2.56154102]
[1758821552394,0.001,3904.4,3903.1,0.2407]
[1758821552604,0.4461,3904.3,3903.9,2.56154102]
[1758821552979,0.24160001,3904.0,3903.1,3.0]
[1758821553175,5.6706,3903.9,3902.8,0.002]
[1758821553434,6.1167,3903.9,3903.2,2.56194792]
[1758821553712,0.2416,3903.8,3903.2,2.56194501]
[1758821554005,2.135,3903.7,3902.8,0.02762262]
[1758821554180,2.135,3903.7,3903.2,2.56199055]
[1758821554382,0.6877,3903.6,3902.8,2.56425131]
[1758821554597,0.2416,3903.5,3902.9,2.56214401]
[1758821554801,0.2416,3903.5,3902.8,0.002]
[1758821555207,17.198451,3903.4,3902.8,0.002]
[1758821555387,11.757691,3903.3,3902.8,0.002]
[1758821555578,7.778677,3903.2,3902.8,0.002]
[1758821555778,0.6877,3903.2,3902.8,0.002]
[1758821556082,2.873543,3903.1,3902.8,0.002]
[1758821556293,2.517669,3903.0,3902.8,0.002]
[1758821556490,2.135,3902.9,3902.8,0.002]
[1758821556812,8.802483,3902.9,3902.8,0.002]
[1758821556985,5.363812,3902.9,3902.8,0.002]
[1758821557723,2.135,3902.9,3902.8,0.002]
[1758821557925,2.8227,3902.9,3902.8,0.002]
[1758821558323,3.48410979,3902.9,3902.8,0.002]
[1758821558834,16.08955679,3902.9,3902.8,0.002]
[1758821558995,23.74672879,3902.9,3902.8,0.002]
[1758821559623,23.28989779,3902.9,3902.8,0.002]
[1758821559939,28.85209513,3902.9,3902.8,0.002]
[1758821560326,23.24039913,3902.9,3902.8,0.002]
[1758821560714,12.58021813,3902.9,3902.8,0.002]
[1758821560897,9.8937,3902.9,3902.8,0.002]
[1758821561233,15.309209,3902.9,3902.8,0.002]
[1758821561818,14.39898,3902.9,3902.8,0.002]
[1758821562016,17.75317734,3902.9,3902.8,0.002]
[1758821562298,3.35445996,3902.5,3902.4,0.002]
[1758821562499,8.76545996,3902.5,3902.4,0.002]
[1758821562700,16.54762296,3902.5,3902.4,0.002]
[1758821563111,9.552605,3902.5,3902.4,0.002]
[1758821563421,12.11506496,3902.5,3902.4,0.002]
[1758821563934,25.66652996,3902.5,3902.4,0.002]
[1758821564253,15.13828496,3902.5,3902.4,0.002]
[1758821564403,12.230181,3902.5,3902.4,0.002]
[1758821564839,15.67669196,3902.5,3902.4,0.002]
[1758821565941,56.86859768,3902.5,3902.4,0.002]
[1758821566839,42.42745996,3902.5,3902.4,0.002]
[1758821567209,35.13739596,3902.5,3902.4,0.002]
[1758821567845,42.42745996,3902.5,3902.4,0.002]
[1758821569836,12.42745996,3902.5,3902.4,0.002]
[1758821570003,7.01645996,3902.5,3902.4,0.002]
[1758821570202,43.03818496,3902.5,3902.4,0.002]
[1758821570403,45.82506996,3902.5,3902.4,0.002]
[1758821570944,51.22645996,3902.5,3902.4,0.002]
[1758821571238,50.75355096,3902.5,3902.4,0.002]
[1758821571406,40.03081896,3902.5,3902.4,0.002]
[1758821572033,3.35472263,3902.1,3902.0,0.002]
[1758821572258,8.74872263,3902.1,3902.0,0.002]
[1758821572434,9.41072263,3902.1,3902.0,0.002]
[1758821572639,39.41072263,3902.1,3902.0,0.002]
[1758821573024,42.41072263,3902.1,3902.0,0.002]
[1758821573527,33.67906563,3902.1,3902.0,0.002]
[1758821573727,34.11196563,3902.1,3902.0,0.002]
[1758821573925,42.41072263,3902.1,3902.0,0.002]
[1758821574928,41.85328763,3902.1,3902.0,0.002]
[1758821575161,32.12832763,3902.1,3902.0,0.002]
[1758821575336,24.92755063,3902.1,3902.0,0.002]
[1758821576065,37.84607863,3902.1,3902.0,0.002]
[1758821576384,42.41072263,3902.1,3902.0,0.002]
[1758821576657,32.23486363,3902.1,3902.0,0.002]
[1758821576965,11.74872263,3902.1,3902.0,0.002]
[1758821577174,30.0,3902.2,3902.0,0.002]
[1758821577485,8.01215,3902.1,3902.0,0.2427]
[1758821577625,8.01215,3902.1,3902.0,0.002]
[1758821577959,5.383,3902.1,3902.0,0.7126]
[1758821579461,5.383,3902.1,3902.0,0.002]
[1758821580130,5.383,3902.1,3902.0,0.7126]
[1758821580330,5.383,3902.1,3902.0,0.2427]
[1758821580564,5.383,3902.1,3902.0,0.7126]
[1758821580929,0.4329,3903.9,3902.0,1.05294456]
[1758821581128,0.128,3903.0,3902.5,2.56241807]
[1758821581370,13.185306,3902.9,3902.7,0.128]
[1758821581534,13.185047,3902.8,3902.0,0.002]
[1758821581730,2.69051085,3902.5,3902.0,0.002]
[1758821581943,25.528451,3902.4,3902.0,0.002]
[1758821582183,22.981128,3902.3,3902.0,0.002]
[1758821582357,15.680729,3902.2,3902.0,0.002]
[1758821582665,3.32445136,3901.7,3901.6,0.002]
[1758821582874,11.69645136,3901.7,3901.6,0.002]
[1758821583168,34.4788,3901.7,3901.6,0.002]
[1758821583327,38.15924936,3901.7,3901.6,0.002]
[1758821583666,16.584108,3901.7,3901.6,0.002]
[1758821583983,5.89422258,3901.7,3901.6,0.002]
[1758821584282,5.89422258,3901.7,3901.6,0.6964]
[1758821584786,5.371,3901.7,3901.6,0.002]
[1758821585148,8.508748,3901.7,3901.6,0.002]
[1758821585390,5.371,3901.7,3901.6,0.6964]
[1758821585830,5.371,3901.7,3901.6,3.25945105]
[1758821586033,5.371,3901.7,3901.6,0.002]
[1758821588905,9.51507,3901.7,3901.6,0.002]
[1758821589209,9.574937,3901.7,3901.6,0.002]
[1758821589414,5.371,3901.7,3901.6,0.002]
[1758821590900,5.371,3901.7,3901.6,2.56505105]
[1758821591110,0.4429,3903.4,3902.5,2.56240812]
[1758821591290,1e-08,3904.0,3901.8,2.56291967]
[1758821591291,7.493,3902.7,3901.8,2.56291967]
[1758821591464,7.493,3902.7,3902.4,2.56246013]
[1758821591670,7.493,3902.7,3902.3,2.5625721]
[1758821591871,8.965546,3902.3,3901.6,0.002]
[1758821592177,5.356,3902.2,3902.1,2.56272263]
[1758821592500,5.355,3902.2,3902.1,0.6819]
[1758821592685,5.355,3902.2,3902.1,3.37262263]
[1758821593072,2.136,3902.6,3902.1,0.8099]
[1758821593268,2.136,3902.6,3902.5,2.56245996]
[1758821593464,7.489,3902.6,3902.2,0.2407]
[1758821593789,11.037335,3902.5,3901.6,0.2427]
[1758821594010,13.59980968,3902.5,3901.6,0.2427]
[1758821594317,2.56260914,3902.3,3901.6,0.2427]
[1758821594515,5.351,3902.2,3901.6,0.2427]
[1758821594666,5.351,3902.2,3901.6,0.002]
[1758821594997,3.16708965,3902.1,3901.6,0.002]
[1758821595214,12.063276,3902.0,3901.6,0.002]
[1758821595415,2.56298536,3901.7,3901.6,0.002]
[1758821595573,4.69898536,3901.7,3901.6,0.002]
[1758821595899,24.08950236,3901.7,3901.6,0.002]
[1758821596076,23.82631115,3901.7,3901.6,0.002]
[1758821596281,26.82631115,3901.7,3901.6,0.002]
[1758821596481,39.52290515,3901.7,3901.6,0.002]
[1758821596682,44.86990515,3901.7,3901.6,0.002]
[1758821597023,44.86990515,3901.7,3899.4,0.2407]
[1758821597024,2.56404089,3900.1,3899.4,0.2407]
[1758821597173,7.482,3900.0,3899.3,2.56451216]
[1758821597374,5.47,3899.9,3899.0,0.2407]
[1758821597769,5.47,3899.9,3899.5,2.56442834]
[1758821597992,5.47,3899.9,3899.4,2.56448408]
[1758821598308,5.47,3899.9,3899.5,3.24626838]
[1758821598500,5.47,3899.9,3899.5,0.2407]
[1758821598671,5.47,3899.9,3899.5,2.80510855]
[1758821598897,5.47,3899.9,3897.8,2.136]
[1758821598898,10.593089,3899.5,3898.3,0.2407]
[1758821599204,10.593089,3899.5,3896.6,2.56633728]
[1758821599205,0.792,3899.1,3897.7,0.2407]
[1758821599403,2.56509548,3898.5,3897.7,0.2407]
[1758821599591,8.635228,3898.4,3897.2,0.2407]
[1758821599791,5.342,3898.4,3897.7,2.56556767]
[1758821600195,5.342,3898.4,3897.9,2.56546414]
[1758821600397,2.56497519,3898.7,3897.9,2.56546414]
[1758821600601,7.477,3898.6,3898.0,0.02565418]
[1758821600787,2.136,3898.5,3898.4,2.56515493]
[1758821600988,2.136,3898.5,3898.0,0.02565418]
[1758821600989,2.136,3898.5,3898.0,2.56541816]
[1758821601307,2.136,3898.5,3897.9,0.58130405]
[1758821601507,2.136,3898.5,3897.7,0.2407]
[1758821601720,2.136,3898.5,3898.0,2.5653655]
[1758821601877,2.136,3898.5,3897.8,2.56554979]
[1758821602077,2.136,3898.5,3897.7,0.2407]
[1758821602294,2.136,3898.5,3897.4,2.5658131]
[1758821602497,2.136,3898.5,3897.7,2.56556593]
[1758821602711,10.18418,3898.4,3896.5,0.2407]
[1758821603009,0.792,3898.0,3895.4,0.2407]
[1758821603221,0.792,3898.0,3896.5,0.128]
[1758821603222,0.128,3897.2,3896.5,0.128]
[1758821603517,2.56567708,3897.7,3896.4,2.56647161]
[1758821603717,7.9016825,3897.6,3896.4,0.02566471]
[1758821603881,2.56557258,3897.8,3896.5,0.2407]
[1758821604226,2.137,3897.5,3896.6,0.4412]
[1758821604521,5.9236262,3897.4,3895.3,0.2407]
[1758821604679,5.9236262,3897.4,3895.2,0.4412]
[1758821604680,0.792,3897.0,3895.4,0.4668713]
[1758821604882,12.56944029,3896.9,3895.5,0.2407]
[1758821605195,2.5663227,3896.7,3895.5,2.80770347]
[1758821605399,2.137,3896.6,3895.5,0.2407]
[1758821605703,5.334,3896.5,3895.5,0.2407]
[1758821605899,5.334,3896.5,3896.0,2.56667324]
[1758821606198,1.25707979,3896.4,3894.9,0.2407]
[1758821606510,0.56447979,3896.4,3895.0,0.4412]
[1758821606713,2.56674649,3896.0,3894.3,0.2407]
[1758821607008,9.293407,3895.9,3894.4,0.4412]
[1758821607208,2.137,3895.8,3894.5,0.2407]
[1758821607422,0.6926,3895.7,3894.2,0.4412]
[1758821607602,2.56706345,3895.6,3894.2,0.4412]
[1758821607803,0.792,3895.4,3893.8,0.4412]
[1758821608014,5.33,3895.3,3894.0,2.56805341]
[1758821608194,5.33,3895.3,3894.7,2.56757121]
[1758821608393,5.33,3895.5,3894.8,0.02567525]
[1758821608594,5.33,3895.5,3892.7,2.56884875]
[1758821608595,0.2497,3896.9,3895.4,2.56713046]
[1758821608894,6.63524231,3896.8,3895.5,0.2407]
[1758821609098,0.4429,3897.1,3895.5,0.2407]
[1758821609317,2.89,3897.0,3895.6,0.4412]
[1758821609612,3.285882,3896.9,3895.8,2.56686688]
[1758821609817,2.89,3897.0,3895.9,0.6819]
[1758821610127,3.3329,3897.0,3896.3,2.56648213]
[1758821610289,0.289,3896.9,3895.5,2.8077471]
[1758821610489,2.89,3897.0,3895.6,0.02566998]
[1758821610798,0.2497,3897.8,3895.8,2.56686688]
[1758821610999,2.76,3897.7,3897.3,2.56585477]
[1758821611200,2.76,3897.7,3896.6,0.2407]
[1758821611523,2.76,3897.7,3897.3,2.56582124]
[1758821611743,2.76,3897.7,3897.4,2.56580165]
[1758821612023,0.6926,3897.6,3897.0,2.56604269]
[1758821612198,2.76,3897.7,3894.5,1.56377069]
[1758821612406,2.5658131,3897.4,3894.8,3.0]
[1758821612609,0.792,3896.9,3894.9,0.62494832]
[1758821612928,2.56655326,3896.3,3895.0,2.56733367]
[1758821613128,5.5727,3896.2,3894.4,2.56773331]
[1758821613430,0.128,3896.9,3896.2,0.128]
[1758821613729,7.46,3896.8,3896.2,0.128]
[1758821615018,1.0417,3897.5,3896.1,0.02566669]
[1758821615251,0.128,3897.1,3896.5,0.128]
[1758821615537,0.5709,3897.7,3897.1,0.128]
[1758821615702,7.457,3897.6,3897.1,0.128]
[1758821615902,7.457,3897.6,3897.3,2.69386518]
[1758821616138,3.1361933,3898.2,3897.5,0.128]
[1758821616306,7.456,3898.1,3897.5,0.128]
[1758821616502,9.059034,3898.0,3897.5,0.128]
[1758821616727,0.2497,3898.0,3897.5,2.69370211]
[1758821617035,7.8989,3898.1,3897.6,2.56566704]
[1758821617036,7.455,3897.9,3897.6,2.56566704]
[1758821617341,0.128,3898.2,3897.9,2.56542769]
[1758821617535,3.212,3898.1,3897.9,0.128]
[1758821617750,2.138,3898.1,3898.0,2.56541816]
[1758821618034,7.453,3898.1,3897.9,2.6934674]
[1758821618241,7.453,3898.1,3898.0,2.56541816]
[1758821618439,7.453,3898.1,3897.9,0.128]
[1758821618612,0.6926,3898.0,3897.0,2.56605959]
[1758821618936,0.6926,3898.0,3897.7,0.128]
[1758821618937,0.2497,3898.0,3897.7,0.128]
[1758821619137,0.2497,3898.0,3896.6,2.56628097]
[1758821619138,0.6926,3897.9,3896.7,2.56624495]
[1758821619337,2.56567344,3897.7,3897.2,0.128]
[1758821619539,22.176093,3897.6,3896.0,0.6819]
[1758821619744,21.362966,3897.5,3896.8,0.128]
[1758821619903,2.56594478,3897.2,3896.0,2.5666755]
[1758821620109,10.436429,3897.1,3895.5,0.2407]
[1758821620311,8.43545343,3897.0,3895.5,0.2407]
[1758821620546,12.27129123,3896.9,3895.9,2.56877737]
[1758821620846,27.110002,3896.8,3895.9,0.002]
[1758821621148,2.56663009,3896.2,3895.9,0.002]
[1758821621307,7.448,3896.1,3895.9,0.002]
[1758821621502,10.69602066,3896.1,3895.9,0.002]
[1758821621725,0.6813,3896.0,3895.9,0.002]
[1758821622027,6.86718011,3896.0,3895.9,0.002]
[1758821622930,18.05003311,3896.0,3895.9,0.002]
[1758821623133,25.52603311,3896.0,3895.9,0.002]
[1758821623321,18.84203311,3896.0,3895.9,0.002]
[1758821623526,32.97103311,3896.0,3895.9,0.002]
[1758821623733,35.97103311,3896.0,3895.9,0.002]
[1758821624042,44.57544311,3896.0,3895.9,0.002]
[1758821625031,43.53692611,3896.0,3895.9,0.002]
[1758821625248,40.79541411,3896.0,3895.9,0.002]
[1758821625446,29.68581111,3896.0,3895.9,0.002]
[1758821625912,51.16903511,3896.0,3895.9,0.002]
[1758821626234,46.92711611,3896.0,3895.9,0.002]
[1758821626836,2.56797353,3894.2,3893.0,2.56869084]
[1758821627020,10.00800279,3894.1,3892.9,2.8029702]
[1758821627224,4.956,3894.0,3892.9,0.2342]
[1758821627408,5.301,3893.9,3893.3,2.56845627]
[1758821627634,5.301,3893.9,3892.7,0.4367]
[1758821627837,2.56831205,3893.7,3892.5,0.2342]
[1758821628149,9.3347944,3893.6,3892.1,2.80349806]